bitfinex/quotes_BTCUSD_20240727
["timestamp","ask_amount","ask_price","bid_price","bid_amount"]
[1722108925797,1.35500798,68792.0,68791.0,0.019924]
[1722108926003,1.36688314,68792.0,68791.0,0.019924]
[1722108928210,1.36688314,68792.0,68783.0,0.002]
[1722108928211,1.569742,68784.0,68783.0,0.002]
[1722108928420,1.92516714,68784.0,68783.0,0.002]
[1722108928623,2.02516714,68784.0,68783.0,0.002]
[1722108928824,2.02534422,68784.0,68783.0,0.002]
[1722108928999,2.01346906,68784.0,68783.0,0.002]
[1722108929137,2.02536307,68784.0,68783.0,0.002]
[1722108929726,2.02536307,68784.0,68783.0,0.003]
[1722108929727,2.02936307,68784.0,68783.0,0.003]
[1722108929940,2.02936307,68784.0,68772.0,0.000924]
[1722108929941,1.308649,68773.0,68772.0,0.000924]
[1722108930143,1.62567007,68773.0,68772.0,0.000924]
[1722108930343,1.79307007,68773.0,68772.0,0.000924]
[1722108930717,1.9387339,68773.0,68772.0,0.000924]
[1722108930919,1.79307007,68773.0,68772.0,0.000924]
[1722108931120,1.89437007,68773.0,68772.0,0.000924]
[1722108931712,2.06293728,68773.0,68772.0,0.000924]
[1722108931905,1.90747606,68773.0,68772.0,0.000924]
[1722108932107,2.06899365,68773.0,68772.0,0.000924]
[1722108932311,1.78664713,68773.0,68772.0,0.000924]
[1722108932484,2.24173064,68773.0,68772.0,0.000924]
[1722108932686,1.99814739,68773.0,68772.0,0.000924]
[1722108932890,1.92404833,68773.0,68772.0,0.000924]
[1722108933700,2.06946705,68773.0,68772.0,0.000924]
[1722108933903,2.06946624,68773.0,68772.0,0.000924]
[1722108934103,1.92404833,68773.0,68772.0,0.000924]
[1722108934326,1.92004833,68773.0,68772.0,0.000924]
[1722108934526,1.92884013,68773.0,68772.0,0.000924]
[1722108934744,1.94284013,68773.0,68772.0,0.001924]
[1722108934943,3.53298476,68773.0,68772.0,0.001924]
[1722108935143,3.96266021,68773.0,68772.0,0.001924]
[1722108935345,3.97465735,68773.0,68772.0,0.001924]
[1722108935507,3.98865735,68773.0,68772.0,0.001924]
[1722108936218,3.99119346,68773.0,68772.0,0.001924]
[1722108937460,3.7388038,68773.0,68772.0,0.001924]
[1722108937663,3.70038246,68773.0,68772.0,0.001924]
[1722108937869,0.14542,68766.0,68743.0,0.45077872]
[1722108938070,0.81840023,68766.0,68743.0,0.45077872]
[1722108938266,0.2,68739.0,68733.0,0.075209]
[1722108938546,0.72744,68734.0,68733.0,0.075209]
[1722108938989,1.018416,68734.0,68733.0,0.075209]
[1722108939244,1.719492,68734.0,68733.0,0.009009]
[1722108939488,1.83881042,68734.0,68733.0,0.009009]
[1722108939688,1.89252645,68734.0,68733.0,0.009009]
[1722108940048,2.18350245,68734.0,68733.0,0.009009]
[1722108940248,2.31487503,68734.0,68733.0,0.009009]
[1722108940564,1.575368,68730.0,68725.0,0.009009]
[1722108940741,0.896225,68726.0,68725.0,0.009009]
[1722108940979,0.896225,68726.0,68714.0,0.009009]
[1722108940980,1.171832,68716.0,68714.0,0.009009]
[1722108941155,1.96077689,68716.0,68714.0,0.009009]
[1722108941356,2.82827963,68716.0,68714.0,0.009009]
[1722108941488,2.74384963,68716.0,68714.0,0.009009]
[1722108941693,1.99363774,68716.0,68714.0,0.009009]
[1722108941895,2.04859701,68716.0,68714.0,0.009009]
[1722108942343,1.66964427,68716.0,68714.0,0.009009]
[1722108942553,1.54088422,68716.0,68714.0,0.009009]
[1722108942967,1.60010792,68716.0,68714.0,0.009009]
[1722108943481,1.87716092,68716.0,68714.0,0.009009]
[1722108943868,0.90737292,68716.0,68714.0,0.009009]
[1722108944016,0.90737292,68716.0,68688.0,1.0488]
[1722108944017,0.232984,68712.0,68688.0,1.0488]
[1722108944217,0.90557592,68712.0,68688.0,1.0488]
[1722108944442,0.927757,68704.0,68688.0,1.0488]
[1722108944665,1.78629548,68704.0,68688.0,1.0488]
[1722108944856,2.41372518,68704.0,68688.0,1.0488]
[1722108945276,2.37306518,68704.0,68688.0,1.0488]
[1722108945682,1.397454,68702.0,68688.0,1.0488]
[1722108945840,5.60695201,68702.0,68688.0,1.0488]
[1722108946044,1.360439,68692.0,68688.0,1.0488]
[1722108946249,2.30313297,68692.0,68691.0,0.00851704]
[1722108946502,2.79093317,68692.0,68691.0,0.002]
[1722108946706,1.310251,68689.0,68688.0,1.0488]
[1722108946904,1.310251,68689.0,68661.0,0.0682]
[1722108946905,0.345619,68672.0,68661.0,0.002]
[1722108947116,1.55561579,68672.0,68661.0,0.002]
[1722108947318,0.724371,68662.0,68661.0,0.002]
[1722108947642,0.724371,68662.0,68651.0,0.002]
[1722108947643,1.388334,68652.0,68651.0,0.002]
[1722108947759,1.56346379,68652.0,68651.0,0.002]
[1722108947967,1.67850343,68652.0,68651.0,0.002]
[1722108948192,2.05727743,68652.0,68651.0,0.002]
[1722108948824,1.80112743,68652.0,68651.0,0.002]
[1722108949030,1.41776379,68652.0,68651.0,0.002]
[1722108949268,1.51555185,68652.0,68651.0,0.002]
[1722108949469,1.86986985,68652.0,68651.0,0.002]
[1722108949772,2.46119385,68652.0,68651.0,0.002]
[1722108949973,2.66694385,68652.0,68651.0,1e-06]
[1722108950173,2.307217,68643.0,68631.0,0.002]
[1722108950348,0.815865,68642.0,68631.0,0.002]
[1722108950572,1.015972,68632.0,68631.0,0.002]
[1722108950717,0.345725,68622.0,68607.0,0.0662]
[1722108950917,0.54385479,68622.0,68607.0,0.0662]
[1722108951118,1.62369585,68622.0,68598.0,0.0619]
[1722108951324,3.1876213,68622.0,68591.0,0.002]
[1722108951746,1.37773925,68622.0,68595.0,0.1687]
[1722108951970,1.66919025,68622.0,68596.0,0.291559]
[1722108952196,2.12674709,68622.0,68595.0,0.145782]
[1722108952371,2.12674709,68622.0,68591.0,0.002]
[1722108952372,2.08556324,68622.0,68598.0,0.145776]
[1722108952547,2.57746012,68622.0,68599.0,0.145773]
[1722108952750,2.57746012,68622.0,68600.0,0.45077872]
[1722108952751,1.31316812,68622.0,68600.0,0.45077872]
[1722108952999,1.31316812,68622.0,68610.0,0.5619]
[1722108953000,0.40701845,68622.0,68610.0,0.5619]
[1722108953170,0.30701845,68622.0,68621.0,0.147727]
[1722108953348,0.014,68622.0,68621.0,1.2055647]
[1722108953550,0.014,68622.0,68621.0,1.022092]
[1722108953749,0.014,68622.0,68621.0,0.2957364]
[1722108954247,0.014,68622.0,68621.0,0.1500094]
[1722108954376,0.014,68622.0,68621.0,0.0089094]
[1722108954377,0.2,68622.0,68621.0,0.0089094]
[1722108954578,0.214,68622.0,68621.0,0.0089094]
[1722108954777,0.214,68622.0,68621.0,0.002]
[1722108955005,0.345725,68622.0,68621.0,0.002]
[1722108955212,0.209,68622.0,68621.0,0.002]
[1722108955410,0.309,68622.0,68621.0,0.0089094]
[1722108955653,0.309,68622.0,68621.0,0.002]
[1722108955654,0.3,68622.0,68621.0,0.002]
[1722108955848,0.370434,68622.0,68621.0,0.002]
[1722108956051,0.370434,68622.0,68621.0,0.1546364]
[1722108956406,0.070434,68622.0,68621.0,1.0290014]
[1722108956607,0.070434,68622.0,68621.0,0.4460914]
[1722108957412,0.058434,68622.0,68621.0,0.7375464]
[1722108957642,0.0015542,68637.0,68635.0,0.145696]
[1722108957768,0.0015542,68637.0,68636.0,0.14752125]
[1722108957970,0.0015542,68637.0,68636.0,0.00682525]
[1722108958194,0.0015542,68637.0,68636.0,0.15252125]
[1722108958195,0.0599762,68637.0,68636.0,0.15252125]
[1722108958394,0.0599762,68637.0,68636.0,0.145696]
[1722108958717,0.0599762,68637.0,68636.0,0.79038]
[1722108958718,0.058422,68637.0,68636.0,0.79038]
[1722108958855,0.072422,68637.0,68636.0,0.79038]
[1722108959065,0.072422,68637.0,68636.0,1.081772]
[1722108959261,0.072422,68637.0,68636.0,1.373164]
[1722108959479,0.014,68637.0,68636.0,1.373164]
[1722108959730,0.0015542,68651.0,68650.0,0.72833]
[1722108959931,0.20084,68660.0,68650.0,0.3529]
[1722108959932,0.0015542,68659.0,68650.0,0.3529]
[1722108960154,0.0015542,68659.0,68652.0,0.145661]
[1722108960323,0.058404,68658.0,68652.0,0.145662]
[1722108960515,0.058404,68658.0,68650.0,0.1411]
[1722108960516,0.0015542,68657.0,68650.0,0.1411]
[1722108960696,0.145656,68655.0,68650.0,0.1341]
[1722108960902,0.1472132,68654.0,68650.0,0.1341]
[1722108961331,0.2,68652.0,68650.0,0.1341]
[1722108961539,0.0015542,68651.0,68650.0,0.1341]
[1722108961948,0.0015542,68651.0,68650.0,0.1351]
[1722108962150,0.0015542,68651.0,68650.0,0.1341]
[1722108962584,0.0015542,68651.0,68650.0,0.1351]
[1722108962925,0.0015542,68651.0,68650.0,0.572098]
[1722108963190,0.0015542,68651.0,68650.0,1.4237718]
[1722108963589,0.058404,68658.0,68657.0,1.01956]
[1722108963805,0.058404,68658.0,68657.0,1.53099279]
[1722108964005,0.00084,68660.0,68659.0,1.011529]
[1722108964218,0.00084,68660.0,68659.0,1.223329]
[1722108964866,0.00084,68660.0,68659.0,1.222329]
[1722108965291,0.00184,68660.0,68659.0,1.235329]
[1722108966079,0.00184,68660.0,68659.0,1.67216888]
[1722108966274,0.2,68680.0,68679.0,0.581813]
[1722108966476,0.2,68680.0,68679.0,0.793613]
[1722108966675,0.2,68680.0,68679.0,0.502404]
[1722108967016,0.258381,68680.0,68679.0,0.145]
[1722108967447,0.258381,68680.0,68659.0,0.44983988]
[1722108967448,0.2,68671.0,68665.0,0.0617]
[1722108967595,0.145636,68664.0,68663.0,0.0833]
[1722108967798,0.2,68671.0,68663.0,0.0833]
[1722108967799,0.291254,68669.0,68663.0,0.0833]
[1722108968034,0.2,68671.0,68663.0,0.0833]
[1722108968387,0.291262,68667.0,68663.0,0.0833]
[1722108968594,0.291253,68669.0,68663.0,0.0833]
[1722108968799,0.14563,68667.0,68663.0,0.0833]
[1722108969010,0.1,68668.0,68663.0,0.0873]
[1722108969404,0.145634,68665.0,68663.0,0.0873]
[1722108969595,0.145632,68666.0,68663.0,0.0873]
[1722108969796,0.1,68668.0,68663.0,0.0873]
[1722108970241,0.636909,68664.0,68663.0,0.004]
[1722108970388,0.736909,68664.0,68663.0,0.004]
[1722108971010,0.3,68664.0,68663.0,0.145638]
[1722108971208,0.3,68664.0,68659.0,0.291292]
[1722108971412,0.1,68663.0,68662.0,0.436921]
[1722108971613,0.1,68664.0,68663.0,0.728192]
[1722108971820,0.1,68664.0,68663.0,0.436915]
[1722108972033,0.1,68664.0,68663.0,0.148638]
[1722108972489,0.1,68664.0,68663.0,0.003]
[1722108972690,0.291252,68669.0,68663.0,0.148638]
[1722108972691,0.1,68666.0,68663.0,0.148638]
[1722108972815,0.145632,68666.0,68663.0,0.003]
[1722108973019,0.1,68665.0,68663.0,0.003]
[1722108973226,0.928182,68664.0,68663.0,0.003]
[1722108973427,1.028182,68664.0,68663.0,0.003]
[1722108973716,1.08881692,68664.0,68663.0,0.003]
[1722108973892,1.08881692,68664.0,68657.0,0.0796]
[1722108973893,0.145643,68661.0,68657.0,0.0796]
[1722108974101,0.291278,68663.0,68657.0,0.0796]
[1722108974303,0.145645,68660.0,68657.0,0.0796]
[1722108975294,0.145641,68662.0,68657.0,0.0836]
[1722108975729,0.3,68664.0,68657.0,0.0836]
[1722108975909,0.1,68664.0,68663.0,0.436915]
[1722108976110,0.2,68672.0,68657.0,0.15872979]
[1722108976111,0.1,68671.0,68670.0,0.145623]
[1722108976313,0.145624,68670.0,68657.0,0.15872979]
[1722108976517,0.16076821,68669.0,68659.0,0.29129]
[1722108976692,0.1,68669.0,68663.0,0.145637]
[1722108976891,0.1,68669.0,68657.0,0.15872979]
[1722108977140,0.1,68669.0,68668.0,0.145628]
[1722108977352,0.1,68669.0,68668.0,0.78844]
[1722108977572,0.058381,68680.0,68668.0,0.78844]
[1722108977573,0.058381,68680.0,68679.0,0.436813]
[1722108977759,0.058381,68680.0,68679.0,0.939822]
[1722108977992,0.058381,68680.0,68679.0,1.366831]
[1722108978132,0.058381,68680.0,68679.0,1.80223608]
[1722108978372,0.058381,68680.0,68679.0,1.51102708]
[1722108978713,0.01523222,68702.0,68679.0,0.49179608]
[1722108978942,0.01523222,68702.0,68689.0,0.28692979]
[1722108978943,0.07360322,68702.0,68689.0,0.28692979]
[1722108979172,0.07360322,68702.0,68689.0,0.2118]
[1722108979403,0.07360322,68702.0,68681.0,0.357399]
[1722108979404,0.2,68691.0,68681.0,0.357399]
[1722108979623,0.145581,68690.0,68681.0,0.2118]
[1722108979841,0.291163,68690.0,68683.0,0.145595]
[1722108980082,0.2,68691.0,68684.0,0.145594]
[1722108980307,0.2,68691.0,68681.0,0.2118]
[1722108980520,0.45077872,68690.0,68681.0,0.2118]
[1722108980721,0.2,68681.0,68673.0,0.0603]
[1722108981125,0.1,68680.0,68673.0,0.0603]
[1722108981330,0.391209,68680.0,68673.0,0.0603]
[1722108981530,0.14561,68677.0,68673.0,0.0603]
[1722108981733,0.391209,68680.0,68673.0,0.0603]
[1722108981734,0.291214,68678.0,68673.0,0.0603]
[1722108981935,0.291219,68677.0,68673.0,0.0603]
[1722108982087,0.145615,68674.0,68673.0,0.0603]
[1722108982813,0.145608,68678.0,68673.0,0.0603]
[1722108983143,0.1,68680.0,68673.0,0.205916]
[1722108983292,0.05967292,68679.0,68676.0,0.14561]
[1722108983478,0.1,68680.0,68678.0,0.07512979]
[1722108983681,0.1,68680.0,68676.0,0.14561]
[1722108983889,0.1,68680.0,68677.0,0.145608]
[1722108984096,0.1,68680.0,68679.0,0.145604]
[1722108984295,0.291169,68689.0,68679.0,0.145603]
[1722108984296,0.145591,68686.0,68679.0,0.145603]
[1722108984518,0.15979348,68685.0,68673.0,0.0603]
[1722108984723,0.145615,68674.0,68673.0,0.0603]
[1722108985067,0.436846,68674.0,68673.0,0.0603]
[1722108985203,0.20542585,68674.0,68673.0,0.0603]
[1722108985407,0.49665685,68674.0,68673.0,0.0603]
[1722108985631,0.145617,68673.0,68672.0,0.0755]
[1722108985832,0.145619,68672.0,68671.0,0.0796]
[1722108986048,0.49666885,68672.0,68671.0,0.0796]
[1722108986454,0.8179944,68672.0,68671.0,0.0796]
[1722108986741,1.24145328,68672.0,68671.0,0.0796]
[1722108986921,1.40630916,68672.0,68671.0,0.0796]
[1722108987132,1.72054816,68672.0,68671.0,0.0796]
[1722108987353,1.74335598,68672.0,68671.0,0.07164001]
[1722108987554,2.26202198,68672.0,68671.0,0.07164001]
[1722108987758,1.75256525,68672.0,68671.0,0.07164001]
[1722108988347,2.02849693,68672.0,68671.0,0.06594001]
[1722108988551,2.72849693,68672.0,68671.0,0.00769201]
[1722108988801,3.01973593,68672.0,68671.0,1e-08]
[1722108989010,2.91849593,68672.0,68671.0,1e-08]
[1722108989373,2.91849593,68672.0,68660.0,0.00017532]
[1722108989374,1.802073,68661.0,68660.0,0.00017532]
[1722108989592,2.83303615,68661.0,68660.0,0.00017532]
[1722108989981,3.10945488,68661.0,68660.0,0.00017532]
[1722108990184,2.95595834,68661.0,68660.0,0.00017532]
[1722108990414,2.68321215,68661.0,68660.0,0.00017532]
[1722108990589,2.73314415,68661.0,68660.0,0.00017532]
[1722108991039,2.73398415,68661.0,68660.0,0.00100032]
[1722108991241,1.989589,68658.0,68657.0,0.000924]
[1722108991458,4.13531694,68658.0,68657.0,0.000924]
[1722108991666,0.928542,68630.0,68629.0,0.45077872]
[1722108991870,1.08923221,68630.0,68629.0,0.45077872]
[1722108992042,0.437164,68624.0,68623.0,0.063]
[1722108992262,0.49785421,68624.0,68623.0,0.063]
[1722108992469,0.78929721,68624.0,68623.0,0.063]
[1722108992664,0.637176,68622.0,68619.0,0.076]
[1722108992918,0.36122991,68622.0,68619.0,0.076]
[1722108993124,0.16122991,68622.0,68621.0,0.148651]
[1722108993333,0.16122991,68622.0,68621.0,0.002924]
[1722108993702,0.50695491,68622.0,68621.0,0.002924]
[1722108993902,0.69840591,68622.0,68621.0,0.002924]
[1722108994104,0.50695491,68622.0,68621.0,0.002924]
[1722108994338,0.36122991,68622.0,68621.0,0.002924]
[1722108994536,0.3,68622.0,68621.0,0.002924]
[1722108994957,0.301,68622.0,68621.0,0.012924]
[1722108995166,0.301,68622.0,68621.0,0.148651]
[1722108995306,0.301,68622.0,68621.0,0.440106]
[1722108995307,0.001,68622.0,68621.0,0.440106]
[1722108995531,0.001,68622.0,68621.0,0.731561]
[1722108995922,0.001,68622.0,68621.0,0.430106]
[1722108996123,0.001,68622.0,68621.0,0.721561]
[1722108996314,0.001,68622.0,68621.0,0.430106]
[1722108996515,0.001,68622.0,68621.0,0.434106]
[1722108996875,0.145716,68627.0,68622.0,0.145725]
[1722108997046,0.145716,68627.0,68621.0,0.155727]
[1722108997047,0.001,68622.0,68621.0,0.155727]
[1722108998103,0.001,68622.0,68621.0,0.447182]
[1722108998605,0.001,68622.0,68621.0,0.01]
[1722108999944,0.146725,68622.0,68621.0,0.01]
[1722109000145,0.438176,68622.0,68621.0,0.01]
[1722109000721,0.146725,68622.0,68621.0,0.01]
[1722109000920,0.438176,68622.0,68621.0,0.01]
[1722109001312,0.001,68622.0,68621.0,0.01]
[1722109001514,0.001,68622.0,68621.0,0.155727]
[1722109001719,0.001,68622.0,68621.0,0.447182]
[1722109001878,0.001,68622.0,68621.0,0.155727]
[1722109002082,0.059426,68622.0,68621.0,0.155727]
[1722109002471,0.059426,68622.0,68621.0,0.738637]
[1722109003243,0.059426,68622.0,68621.0,0.447182]
[1722109004074,0.059426,68622.0,68621.0,0.01]
[1722109004276,0.059426,68622.0,68621.0,0.447182]
[1722109004683,0.059426,68622.0,68621.0,0.01]
[1722109008094,0.205151,68622.0,68621.0,0.01]
[1722109008357,0.796602,68622.0,68621.0,0.01]
[1722109008635,1.78004883,68622.0,68621.0,0.01]
[1722109008851,2.3513098,68622.0,68621.0,0.00793731]
[1722109009107,2.50440696,68622.0,68621.0,3.1e-07]
[1722109009328,2.82694394,68622.0,68621.0,3.1e-07]
[1722109009558,2.84004746,68622.0,68621.0,3.1e-07]
[1722109009775,2.79696097,68622.0,68621.0,3.1e-07]
[1722109009992,2.75548315,68622.0,68621.0,3.1e-07]
[1722109010220,1.890667,68612.0,68611.0,0.002]
[1722109010473,0.2,68592.0,68591.0,0.002]
[1722109010719,0.2,68592.0,68561.0,0.002]
[1722109010720,0.2,68572.0,68563.0,0.45077872]
[1722109010925,1.28135324,68572.0,68563.0,0.45077872]
[1722109011141,1.87998977,68572.0,68561.0,0.002]
[1722109011343,1.811927,68562.0,68561.0,0.002]
[1722109011542,1.97245624,68562.0,68561.0,0.002]
[1722109011749,2.72452324,68562.0,68561.0,0.002]
[1722109011955,2.50282078,68562.0,68561.0,0.002]
[1722109012177,1.812102,68553.0,68551.0,0.002]
[1722109012454,2.9973141,68553.0,68551.0,0.002]
[1722109012686,2.62870237,68553.0,68551.0,0.002]
[1722109012910,2.13560257,68553.0,68551.0,0.002]
[1722109013131,2.44088577,68553.0,68551.0,0.002]
[1722109013356,1.520518,68542.0,68537.0,0.008]
[1722109013575,1.70673978,68542.0,68537.0,0.008]
[1722109013845,0.82390778,68542.0,68537.0,0.008]
[1722109014039,0.3,68542.0,68537.0,0.008]
[1722109014148,0.737686,68542.0,68537.0,0.008]
[1722109014384,0.760686,68542.0,68537.0,0.008]
[1722109014607,1.052477,68542.0,68537.0,0.008]
[1722109014856,1.066477,68542.0,68537.0,0.008]
[1722109015058,1.052477,68542.0,68537.0,0.008]
[1722109015265,1.139927,68542.0,68537.0,0.008]
[1722109015435,1.149927,68542.0,68537.0,0.008]
[1722109015649,1.062477,68542.0,68537.0,0.008]
[1722109015852,1.052477,68542.0,68537.0,0.008]
[1722109016649,1.139927,68542.0,68537.0,0.008]
[1722109016850,1.431718,68542.0,68537.0,0.008]
[1722109017056,1.528118,68542.0,68537.0,0.008]
[1722109017253,1.400586,68538.0,68537.0,0.008]
[1722109017465,1.400586,68538.0,68525.0,0.00876566]
[1722109017466,0.725201,68532.0,68525.0,0.00876566]
[1722109017644,2.32356005,68532.0,68525.0,0.00876566]
[1722109017857,2.61539405,68532.0,68525.0,0.00876566]
[1722109018063,2.6165381,68532.0,68525.0,0.00876566]
[1722109018267,2.6165381,68532.0,68490.0,0.36713979]
[1722109018268,0.433409,68512.0,68484.0,0.45077872]
[1722109018474,0.67786784,68512.0,68484.0,0.45077872]
[1722109018740,1.344716,68512.0,68494.0,0.0828]
[1722109019012,1.344716,68512.0,68500.0,0.064]
[1722109019592,1.344716,68512.0,68484.0,0.064]
[1722109019593,1.643966,68512.0,68484.0,0.064]
[1722109019915,1.643966,68512.0,68489.0,0.300015]
[1722109019916,1.344716,68512.0,68489.0,0.300015]
[1722109020351,0.3,68512.0,68493.0,0.291997]
[1722109020573,0.2,68512.0,68507.0,0.064]
[1722109020921,0.345959,68512.0,68511.0,0.01158505]
[1722109021124,0.345959,68512.0,68511.0,0.002]
[1722109021529,1.221716,68512.0,68511.0,0.002]
[1722109021982,0.34774536,68512.0,68511.0,0.002]
[1722109022137,0.44774536,68512.0,68511.0,0.002]
[1722109022556,0.73966436,68512.0,68511.0,0.002]
[1722109022948,1.03158336,68512.0,68511.0,0.002]
[1722109023172,1.32350236,68512.0,68511.0,0.002]
[1722109023587,1.40480236,68512.0,68511.0,0.002]
[1722109023904,1.92853336,68512.0,68511.0,0.002]
[1722109024038,2.33090236,68512.0,68511.0,0.00153921]
[1722109024215,2.49959858,68512.0,68511.0,0.00153921]
[1722109024625,2.14779568,68512.0,68511.0,0.00153921]
[1722109024821,2.09538068,68512.0,68511.0,0.00153921]
[1722109025260,2.06831468,68512.0,68511.0,0.00153921]
[1722109025484,2.04278368,68512.0,68511.0,0.00153921]
[1722109025622,1.91598368,68512.0,68511.0,0.00153921]
[1722109026028,1.65366725,68512.0,68511.0,0.00153921]
[1722109028533,1.23874825,68512.0,68511.0,0.00153921]
[1722109028934,1.53652125,68512.0,68511.0,0.00153921]
[1722109029945,1.62397125,68512.0,68511.0,0.00153921]
[1722109030098,1.74697125,68512.0,68511.0,0.00153921]
[1722109030501,1.36760225,68512.0,68511.0,0.00153921]
[1722109030906,1.07568325,68512.0,68511.0,0.00153921]
[1722109031397,1.05268325,68512.0,68511.0,0.00153921]
[1722109031547,0.22288625,68512.0,68511.0,0.06253921]
[1722109031949,0.22288625,68512.0,68511.0,0.14832426]
[1722109032274,0.00764036,68512.0,68511.0,0.58620826]
[1722109032472,0.64551836,68512.0,68511.0,0.14832426]
[1722109032921,0.20764036,68512.0,68511.0,0.13873921]
[1722109033092,0.20764036,68512.0,68511.0,0.29428526]
[1722109033093,0.00764036,68512.0,68511.0,0.29428526]
[1722109033298,0.00764036,68512.0,68511.0,0.58620826]
[1722109033517,0.00764036,68512.0,68511.0,0.87813126]
[1722109033681,0.00764036,68512.0,68511.0,0.58620826]
[1722109033885,0.00084,68519.0,68517.0,0.145948]
[1722109034085,0.00084,68519.0,68518.0,0.65017079]
[1722109034516,0.00084,68519.0,68518.0,0.97138278]
[1722109034517,0.059353,68519.0,68518.0,0.97138278]
[1722109034902,0.059353,68519.0,68518.0,1.26327678]
[1722109035168,0.01524589,68529.0,68528.0,0.145925]
[1722109035351,0.45077872,68536.0,68532.0,0.145916]
[1722109035549,0.2,68541.0,68528.0,0.21232979]
[1722109035550,0.01524589,68537.0,68528.0,0.21232979]
[1722109035703,0.058506,68530.0,68529.0,0.43777]
[1722109035904,0.14591,68536.0,68529.0,0.145923]
[1722109036131,0.01524589,68537.0,68528.0,0.21232979]
[1722109036331,0.01524589,68537.0,68531.0,0.145917]
[1722109036332,0.058503,68536.0,68531.0,0.145917]
[1722109036533,0.058503,68536.0,68533.0,0.008]
[1722109036733,0.058503,68536.0,68535.0,0.35823979]
[1722109036936,0.01524589,68537.0,68536.0,0.866742]
[1722109037312,0.01524589,68537.0,68536.0,0.1372]
[1722109037313,0.437719,68537.0,68536.0,0.1372]
[1722109037724,0.058496,68541.0,68536.0,0.1372]
[1722109037977,0.637719,68537.0,68536.0,0.1372]
[1722109038173,0.637719,68537.0,68533.0,0.008]
[1722109038174,0.729562,68534.0,68533.0,0.008]
[1722109038385,1.18605322,68534.0,68533.0,0.008]
[1722109038612,1.5008775,68534.0,68533.0,0.008]
[1722109039653,1.52377829,68534.0,68533.0,0.008]
[1722109040321,0.62530329,68534.0,68533.0,0.008]
[1722109040665,0.18756629,68534.0,68533.0,0.02252]
[1722109040884,0.08756629,68534.0,68533.0,0.008]
[1722109041307,0.08857755,68534.0,68533.0,0.008]
[1722109041510,0.02290079,68534.0,68533.0,0.008]
[1722109042031,0.02290079,68534.0,68533.0,0.874775]
[1722109042233,0.058496,68541.0,68540.0,0.2831]
[1722109042436,0.204394,68541.0,68540.0,0.1372]
[1722109042633,0.058496,68541.0,68540.0,0.1372]
[1722109043610,0.204394,68541.0,68540.0,0.1372]
[1722109044105,0.058496,68541.0,68540.0,0.1372]
[1722109044627,0.49619,68541.0,68540.0,0.1372]
[1722109045025,0.204394,68541.0,68540.0,0.1372]
[1722109045229,0.058496,68541.0,68540.0,0.1372]
[1722109046231,0.058496,68541.0,68540.0,0.2831]
[1722109046459,0.058496,68541.0,68540.0,0.5749]
[1722109046724,0.11524589,68546.0,68540.0,0.3405914]
[1722109046952,0.01524589,68546.0,68545.0,0.437668]
[1722109047172,0.02289331,68550.0,68545.0,0.206889]
[1722109047435,0.02289331,68550.0,68545.0,0.061]
[1722109047634,0.058488,68549.0,68548.0,0.145882]
[1722109048090,0.058488,68549.0,68548.0,0.8160777]
[1722109048304,0.01524589,68558.0,68548.0,0.1476637]
[1722109048532,0.058485,68552.0,68551.0,0.145876]
[1722109048754,0.01524589,68558.0,68553.0,0.061]
[1722109049196,0.43761,68554.0,68553.0,0.061]
[1722109049412,0.72935,68554.0,68553.0,0.061]
[1722109049650,0.43761,68554.0,68553.0,0.061]
[1722109050100,0.14587,68554.0,68553.0,0.061]
[1722109050314,0.058482,68557.0,68556.0,0.437598]
[1722109050544,0.01524589,68558.0,68557.0,0.578992]
[1722109050752,0.01524589,68558.0,68557.0,1.162448]
[1722109051006,0.058478,68560.0,68559.0,0.729297]
[1722109051227,2.0,68567.0,68566.0,0.795222]
[1722109051448,2.0,68567.0,68566.0,1.2418332]
[1722109051674,0.0002,68567.0,68566.0,1.2418332]
[1722109051919,0.02288417,68582.0,68575.0,0.145823]
[1722109052141,0.058464,68577.0,68569.0,0.0675542]
[1722109052355,0.02288417,68582.0,68573.0,0.291656]
[1722109052568,0.02288417,68582.0,68579.0,0.291634]
[1722109052569,0.058462,68581.0,68579.0,0.291634]
[1722109052776,0.058462,68581.0,68574.0,0.043434]
[1722109052777,0.058462,68581.0,68580.0,0.870475]
[1722109052989,0.058462,68581.0,68574.0,0.043434]
[1722109052990,0.00822,68588.0,68582.0,0.066]
[1722109053203,0.00822,68588.0,68587.0,0.4374]
[1722109053423,0.00822,68588.0,68587.0,0.19614]
[1722109053644,0.00822,68588.0,68587.0,0.05034]
[1722109053876,0.145802,68586.0,68582.0,0.066]
[1722109054101,0.00822,68588.0,68582.0,0.066]
[1722109054384,0.145808,68583.0,68582.0,0.066]
[1722109054807,0.437425,68583.0,68582.0,0.066]
[1722109055030,0.00822,68588.0,68582.0,0.066]
[1722109055254,0.729042,68583.0,68582.0,0.066]
[1722109055471,1.120659,68583.0,68582.0,0.066]
[1722109056427,1.120659,68583.0,68558.0,0.066]
[1722109056428,0.145842,68567.0,68558.0,0.066]
[1722109056643,0.145842,68567.0,68550.0,0.0015542]
[1722109056644,0.2,68568.0,68551.0,0.066]
[1722109056868,0.291702,68563.0,68552.0,0.01664962]
[1722109057095,0.145871,68554.0,68552.0,0.01664962]
[1722109057349,0.291702,68563.0,68552.0,0.0015542]
[1722109057573,0.1,68567.0,68560.0,0.07668399]
[1722109057823,0.1,68567.0,68562.0,0.0015542]
[1722109058062,0.437553,68563.0,68562.0,0.0015542]
[1722109058371,0.829255,68563.0,68562.0,0.0015542]
[1722109058865,0.437598,68556.0,68555.0,0.066]
[1722109059325,0.145866,68556.0,68555.0,0.066]